[Event "Budapest Chess Festival 2024"]
[Site "Budapest"]
[Date "2024.05.27"]
[Round "5.6"]
[White "Borgaonkar, Akshay"]
[Black "Ivanisevic, Ivan"]
[Result "0-1"]
[ECO "C70"]
[WhiteElo "2372"]
[BlackElo "2537"]
[Annotator "TA"]
[PlyCount "134"]
[EventDate "2024.05.20"]
[EventType "swiss"]
[EventCountry "HUN"]
[SourceTitle "playchess.com"]
[Source "ChessBase"]
[SourceQuality "1"]
[TimeControl "40/5400+30:1800+30"]

1. e4 {[%emt 0:00:34]} e5 {[%emt 0:00:47]} 2. Nf3 {[%emt 0:00:08]} Nc6 {[%emt 0:00:04]} 3. Bb5 {[%emt 0:00:09]} a6 {[%emt 0:00:08]} 4. Ba4 {[%emt 0:00:04]} Bc5 {[%emt 0:00:06]} 5. O-O {[%emt 0:00:59]} Nge7 {[%emt 0:00:04]} 6. c3 {[%emt 0:00:13]} Ba7 {[%emt 0:00:11] C64: Ruy Lopez: Classical Defence (3...Bc5) except 4 0-0 Nf6.} 7. d4 {[%emt 0:00:18]} Ng6 {[%emt 0:00:06]} 8. Bg5 {[%emt 0:00:13]} f6 {[%emt 0:00:06]} 9. Be3 {[%emt 0:00:05]} O-O {[%emt 0:00:07]} 10. Nbd2 {[%emt 0:00:13]} d6 {[%emt 0:00:10]} 11. Re1 {[%emt 0:01:05]} Kh8 {[%emt 0:00:07]} 12. h3 {[%emt 0:01:20]} exd4 {[%emt 0:01:03]} 13. Nxd4 {[%emt 0:06:01]} Nxd4 {[%emt 0:00:26]} 14. Bxd4 {[%emt 0:01:53]} Bxd4 {[%emt 0:00:08]} 15. cxd4 {[%emt 0:00:02]} f5 $146 {[%emt 0:00:29]} ({Predecessor:} 15... d5 16. exd5 Qxd5 17. Ne4 Bf5 18. Bb3 Qd7 19. Nc5 Qc6 20. Rc1 Rfe8 21. d5 Rxe1+ 22. Qxe1 {1-0 Nalbandyan,V (2110)-Sahakyan,A (2339) Yerevan Asrian Memorial 14th 2024 (6)}) 16. e5 {[%emt 0:23:17]} b5 {[%emt 0:00:15]} 17. Bb3 {[%emt 0:02:10]} dxe5 {[%emt 0:05:08]} 18. dxe5 {[%emt 0:00:18]} Bb7 {[%emt 0:01:38]} 19. Nf3 {[%emt 0:09:09]} c5 {[%emt 0:06:32]} 20. Qxd8 {[%emt 0:06:42]} Raxd8 {[%emt 0:00:41]} 21. Ng5 {[%emt 0:02:38]} c4 {[%emt 0:02:31]} 22. Bd1 {[%emt 0:00:23]} Nf4 {[%emt 0:11:52]} 23. e6 {[%emt 0:03:25]} Rde8 {[%emt 0:01:18]} (23... Bxg2 $2 {loses.} 24. e7 Bd5 25. Bf3 $18 (25. exf8=R+ Rxf8 26. Bf3 Bg8 $18) (25. exd8=N Rxd8 26. Bf3 h6 $18) (25. exf8=Q+ Rxf8 26. Bf3 Bg8 $18) (25. exd8=R Rxd8 26. Bf3 h6 $18)) 24. e7 {[%emt 0:02:21]} Rf6 {[%emt 0:00:18]} 25. Bf3 {[%emt 0:00:35]} Bxf3 {[%emt 0:04:06]} 26. Nxf3 {[%emt 0:00:13]} Nd3 {[%emt 0:02:20]} 27. Rad1 $2 {[%emt 0:00:34]} (27. Re2 $11 {and White is okay.}) 27... Nxe1 $19 {[%emt 0:07:55]} 28. Rd8 {[%emt 0:00:40]} Nxf3+ {[%emt 0:00:06]} 29. gxf3 {[%emt 0:00:36]} Kg8 $1 {[%emt 0:00:06]} (29... Rg6+ 30. Kf1 Kg8 31. Rxe8+ Kf7 32. Rf8+ Kxe7 33. Rxf5) 30. Rxe8+ {[%emt 0:00:06]} Kf7 {[%emt 0:00:04]} 31. Ra8 {[%emt 0:10:48]} Kxe7 {[%emt 0:00:07]} 32. Ra7+ {[%emt 0:00:06]} Kf8 {[%emt 0:00:14]} (32... Kd6 $19 33. Kf1 Ke5 34. Rxg7 Kf4) 33. Kf1 $17 {[%emt 0:07:37]} Kg8 {[%emt 0:00:50]} 34. h4 {[%emt 0:03:14]} h6 {[%emt 0:05:24]} 35. Ke2 {[%emt 0:02:54]} Re6+ {[%emt 0:00:22]} 36. Kd2 {[%emt 0:01:27]} Kh7 {[%emt 0:01:25]} 37. h5 {[%emt 0:01:09]} Kg8 {[%emt 0:00:15]} ({Black should play} 37... f4 38. a4 Rd6+ (38... bxa4 39. Kc3 $11) 39. Kc1 bxa4) 38. Rc7 {[%emt 0:01:17]} f4 {[%emt 0:01:22]} 39. Rc5 {[%emt 0:02:39]} Rd6+ {[%emt 0:03:52]} 40. Ke2 {[%emt 0:00:00]} Kf7 {[%emt 0:00:00]} 41. a4 {[%emt 0:04:37]} Rb6 {[%emt 0:03:58]} ({But not} 41... bxa4 42. Rxc4 Rb6 43. Rxf4+ Kg8 44. Rxa4 $11) 42. axb5 {[%emt 0:00:17]} (42. Kd1 $17) 42... axb5 $19 {[%emt 0:01:20]} 43. Rf5+ {[%emt 0:00:17]} Ke6 {[%emt 0:01:46]} 44. Rxf4 {[%emt 0:00:10]} Rd6 {[%emt 0:00:13]} 45. Rg4 {[%emt 0:15:17]} Rd5 {[%emt 0:01:48]} (45... Rd7 $17 46. f4 Kd5) 46. Rxg7 $15 {[%emt 0:01:24]} Rxh5 {[%emt 0:00:08]} 47. Ke3 {[%emt 0:04:19]} Re5+ {[%emt 0:09:40]} 48. Kd2 {[%emt 0:06:05]} (48. Kd4 $15) 48... h5 {[%emt 0:01:07]} ({Better is} 48... Rd5+ $1 $19 49. Kc1 h5) 49. Rh7 $17 {[%emt 0:00:51]} Kf6 {[%emt 0:00:23]} 50. f4 {[%emt 0:03:51]} Rd5+ {[%emt 0:00:27]} 51. Ke3 $2 {[%emt 0:01:06]} ({White has to play} 51. Ke2 $1 $15) 51... Kg6 $1 $19 {[%emt 0:00:29]} 52. Rb7 $2 {[%emt 0:00:37] [#]} (52. Rh8) 52... h4 $1 $19 {[%emt 0:01:44]} 53. Kf3 {[%emt 0:01:26]} h3 {[%emt 0:06:47]} 54. Rb6+ {[%emt 0:01:00]} (54. Kg3 $142 Rh5 55. Kh2) 54... Kf5 $19 {[%emt 0:00:17]} 55. Kg3 {[%emt 0:01:20] [#]} Rd3+ $1 {[%emt 0:00:23]} 56. f3 {[%emt 0:00:07]} Rb3 {[%emt 0:00:04]} 57. Rc6 {[%emt 0:00:11]} Rxb2 {[%emt 0:06:51]} 58. Rc5+ {[%emt 0:00:00]} Ke6 {[%emt 0:00:06]} 59. Kxh3 {[%emt 0:00:08]} Kd6 {[%emt 0:02:41]} 60. Rc8 {[%emt 0:00:02]} Ra2 {[%emt 0:06:31]} 61. f5 {[%emt 0:00:45]} Ra7 {[%emt 0:00:10]} 62. Rb8 {[%emt 0:02:24]} c3 {[%emt 0:01:40]} 63. f6 {[%emt 0:00:01]} Rc7 {[%emt 0:00:29]} 64. Rb6+ {[%emt 0:00:30]} Kc5 {[%emt 0:00:16]} 65. Rb8 {[%emt 0:00:13]} Kb4 {[%emt 0:00:20]} 66. Re8 {[%emt 0:00:49]} c2 {[%emt 0:00:06]} 67. Re1 {[%emt 0:00:05]} c1=Q {[%emt 0:00:56]} 0-1

[Event "Budapest Chess Festival 2024"]
[Site "Budapest"]
[Date "2024.05.27"]
[Round "5.7"]
[White "Iliaguev, Nisim"]
[Black "Aryan Chopra"]
[Result "0-1"]
[ECO "A00"]
[WhiteElo "2397"]
[BlackElo "2641"]
[Annotator "TA"]
[PlyCount "104"]
[EventDate "2024.05.20"]
[EventType "swiss"]
[EventCountry "HUN"]
[SourceTitle "playchess.com"]
[Source "ChessBase"]
[SourceQuality "1"]
[TimeControl "40/5400+30:1800+30"]

{[%evp 17,104,0,0,0,0,0,0,0,0,0,0,0,-8,-33,0,0,0,-35,-8,-30,-31,-94,-64,-77,-69,-79,-93,-74,-78,-86,-24,-42,-48,-100,-106,-112,-102,-118,-106,-129,-101,-129,-141,-154,-142,-140,-147,-289,-281,-233,-142,-150,-152,-168,-165,-167,-153,-156,-134,-276,-263,-322,-261,-289,-276,-414,-409,-431,-441,-513,-421,-410,-424,-387,-412,-359,-364,-329,-355,-362,-355,-353,-338,-347,-348,-361,-367,-543,-530]} 1. g3 {[%emt 0:01:50]} Nf6 {[%emt 0:00:40]} 2. Bg2 {[%emt 0:00:07]} c5 {[%emt 0:02:44]} 3. c4 {[%emt 0:00:14]} d5 {[%emt 0:00:03]} 4. Nf3 {[%emt 0:00:41]} d4 {[%emt 0:02:29]} 5. e3 {[%emt 0:00:20]} Nc6 {[%emt 0:02:05]} 6. exd4 {[%emt 0:00:13] A09: Réti Opening: 1 Nf3 d5 2 c4.} cxd4 {[%emt 0:05:06]} 7. d3 {[%emt 0:00:07]} e5 {[%emt 0:01:42]} 8. O-O {[%emt 0:00:13]} Bd6 {[%emt 0:00:35]} 9. Re1 {[%emt 0:00:32]} O-O {[%emt 0:00:16]} 10. a3 {[%emt 0:00:22]} a5 {[%emt 0:05:56]} 11. Bg5 {[%emt 0:01:15]} h6 {[%emt 0:00:04]} 12. Bxf6 {[%emt 0:00:10]} Qxf6 {[%emt 0:00:03]} 13. Nbd2 Bc7 {[%emt 0:07:21]} 14. Qc2 {[%emt 0:02:00]} Be6 {[%emt 0:05:20]} 15. c5 {[%emt 0:06:00]} Qe7 {[%emt 0:11:37]} 16. Rac1 $146 {[%emt 0:01:04]} ({Predecessor:} 16. b3 Qd7 17. Nc4 f6 18. Rab1 Ne7 19. Nfd2 Bd5 20. b4 Bxg2 21. Kxg2 {½-½ Drasko,M (2441)-Djordjevic,V (2421) Belgrade PEP 2017 (2)}) 16... a4 {[%emt 0:02:47]} 17. Ne4 {[%emt 0:10:36]} Rfe8 {[%emt 0:09:21]} 18. Nfd2 {[%emt 0:06:24]} Na5 {[%emt 0:00:04]} 19. c6 {[%emt 0:04:04] [#]} (19. Nd6 $15) 19... b6 $1 $17 {[%emt 0:03:50]} ({Much weaker is} 19... Nxc6 $6 20. Nc5 Rec8 21. Nxb7 $14) 20. g4 {[%emt 0:04:09]} (20. Qxa4 $2 {is the wrong capture.} Nb3 $19) 20... Nb3 {[%emt 0:05:19]} 21. Nxb3 {[%emt 0:00:47]} axb3 {[%emt 0:00:04]} 22. Qd1 {[%emt 0:06:36]} Qh4 {[%emt 0:00:06]} 23. h3 {[%emt 0:01:03] [#]} h5 {[%emt 0:04:07]} (23... Rf8 $1 $17 24. Ng3 (24. Qf3 f5) 24... g6) 24. g5 {[%emt 0:08:56]} Bxh3 {[%emt 0:08:36]} 25. Qf3 {[%emt 0:10:03]} (25. Bxh3 $15 Qxh3 26. Qxb3) 25... Be6 $17 {[%emt 0:01:57]} 26. Qg3 {[%emt 0:01:38]} Qxg3 {[%emt 0:00:09]} 27. fxg3 {[%emt 0:00:07]} Kh7 {[%emt 0:01:02]} 28. Bf3 {[%emt 0:03:24]} Kg6 {[%emt 0:00:13]} 29. Kf2 {[%emt 0:00:37]} f5 {[%emt 0:02:42]} 30. gxf6 {[%emt 0:00:46]} gxf6 {[%emt 0:00:04]} 31. Rh1 {[%emt 0:00:57]} Rh8 {[%emt 0:00:53]} 32. Rh2 {[%emt 0:04:35]} (32. Rh4 $17) 32... f5 $19 {[%emt 0:03:45]} 33. Nd2 {[%emt 0:00:12]} Rh6 {[%emt 0:00:20]} 34. Rch1 {[%emt 0:02:48]} Rah8 {[%emt 0:00:31]} 35. Bd1 {[%emt 0:02:00]} Bd5 {[%emt 0:01:56]} 36. Bf3 {[%emt 0:00:08]} Bf7 {[%emt 0:01:58]} 37. Bd1 {[%emt 0:01:31]} Kg7 {[%emt 0:01:06]} 38. Nxb3 {[%emt 0:03:22]} (38. Bxb3 $17 {was necessary.} Bxb3 (38... Rxc6 39. Bxf7 Kxf7 40. Rxh5 $11) 39. Nxb3) 38... Rxc6 {[%emt 0:00:27]} 39. Nd2 {[%emt 0:00:08]} b5 {[%emt 0:04:05]} 40. Bb3 {[%emt 0:00:00]} Bg6 {[%emt 0:00:00]} 41. a4 {[%emt 0:08:52]} (41. Nf3 $142) 41... e4 $19 {[%emt 0:03:50]} 42. axb5 {[%emt 0:00:57]} Rc5 {[%emt 0:00:15]} 43. Nc4 {[%emt 0:00:54]} Rxb5 {[%emt 0:00:16]} 44. Ba4 {[%emt 0:00:09]} Rb4 {[%emt 0:01:08]} 45. b3 {[%emt 0:00:07]} e3+ {[%emt 0:08:02]} 46. Kf3 {[%emt 0:00:47]} f4 {[%emt 0:00:10]} 47. gxf4 {[%emt 0:00:41]} Bxd3 {[%emt 0:00:05]} 48. Rc1 {[%emt 0:05:00]} Rf8 {[%emt 0:04:39]} 49. Rh4 {[%emt 0:02:07]} Bg6 {[%emt 0:05:28]} 50. Rd1 {[%emt 0:07:21]} Bd8 {[%emt 0:01:57]} 51. Rhh1 {[%emt 0:00:21]} Bf6 {[%emt 0:00:08]} 52. Nb2 {[%emt 0:00:08]} (52. Rdg1 $142 Kh6 53. Bc6) 52... Bg5 {[%emt 0:00:53]} 0-1

[Event "Budapest Chess Festival 2024"]
[Site "Budapest"]
[Date "2024.05.27"]
[Round "5.9"]
[White "Kozak, Adam"]
[Black "Shagbazyan, Taron"]
[Result "1/2-1/2"]
[ECO "A18"]
[WhiteElo "2607"]
[BlackElo "2403"]
[Annotator "TA"]
[PlyCount "62"]
[EventDate "2024.05.20"]
[EventType "swiss"]
[EventCountry "HUN"]
[SourceTitle "playchess.com"]
[Source "ChessBase"]
[SourceQuality "1"]
[TimeControl "40/5400+30:1800+30"]

{[%evp 16,62,20,8,119,104,118,105,113,102,110,115,101,97,141,108,200,119,116,79,98,120,135,89,110,33,252,246,274,285,247,167,173,159,249,132,126,95,45,84,100,0,-16,-219,-220,-222,-214,-236,-214]} 1. c4 {[%emt 0:00:32]} Nf6 {[%emt 0:07:11]} 2. Nc3 {[%emt 0:00:08]} e6 {[%emt 0:00:12]} 3. e4 {[%emt 0:00:06]} d5 {[%emt 0:01:04]} 4. e5 {[%emt 0:00:59]} d4 {[%emt 0:00:26]} 5. exf6 {[%emt 0:00:06]} dxc3 {[%emt 0:00:02]} 6. bxc3 {[%emt 0:00:08]} Qxf6 {[%emt 0:00:17]} 7. Nf3 {[%emt 0:00:05]} b6 {[%emt 0:01:41]} 8. d4 {[%emt 0:00:10]} Bb7 {[%emt 0:03:14]} 9. Bd3 {[%emt 0:00:12] Strongly threatening Bg5.} Nd7 {[%emt 0:08:19]} (9... h6 $11) 10. Bg5 $1 $16 {[%emt 0:01:03]} Bxf3 {[%emt 0:00:51]} 11. Qd2 {[%emt 0:00:08]} (11. Qxf3 $6 Qxf3 12. gxf3 Ba3 $14) 11... Bxg2 {[%emt 0:00:11] White is better.} 12. Bxf6 {[%emt 0:00:23]} Bxh1 {[%emt 0:00:57]} 13. Bg5 {[%emt 0:04:02][%cal Of2f3]} Bb7 {[%emt 0:04:30]} 14. Bf4 {[%emt 0:02:48]} c5 {[%emt 0:01:59]} 15. O-O-O {[%emt 0:16:49]} Be7 {[%emt 0:05:55]} (15... cxd4 $16 16. cxd4 Rc8) 16. Qc2 {[%emt 0:04:27]} (16. d5 $1 $18) 16... cxd4 {[%emt 0:03:13]} 17. cxd4 {[%emt 0:03:41]} (17. Bxh7 Nf6 18. Bd3 dxc3 $11) 17... Rc8 {[%emt 0:01:01]} 18. Kb1 $1 {[%emt 0:04:28][%mdl 1024] White has strong compensation.} (18. Bxh7 b5 19. Be4 Rxc4 20. Bxb7 Ba3+ (20... Rxc2+ 21. Kxc2 Bf6 22. Bc6 $15) 21. Kb1 Rxc2 22. Kxc2 Ke7 $17) 18... Bf6 {[%emt 0:07:49]} 19. Be3 {[%emt 0:10:29]} (19. Bxh7 $6 g6 20. Bxg6 fxg6 $11) (19. Bd6 $142 $1 {aiming for Qa4.} Bf3 20. Be2 Bxe2 21. Qxe2) 19... g6 {[%emt 0:05:47] [#]} 20. Qa4 {[%emt 0:04:42]} (20. Bh6 $1 $16) 20... a6 $2 {[%emt 0:05:27] [#]} (20... Bc6 $1 $14 21. Qxa7 O-O) 21. d5 $1 $18 {[%emt 0:14:15][%mdl 512]} b5 {[%emt 0:18:22]} 22. cxb5 {[%emt 0:01:38]} Bxd5 {[%emt 0:02:56]} 23. bxa6 {[%emt 0:16:55]} Bc6 {[%emt 0:02:45]} 24. Qa3 {[%emt 0:07:27]} Be7 {[%emt 0:03:20]} (24... Rb8+ $16 25. Kc1 (25. Kc2 Be7 $11) 25... Be7) 25. Qc3 {[%emt 0:00:16]} (25. Qa5 $18 {Bb5 would now be deadly.} Bd8 26. Qe1) 25... O-O $16 {[%emt 0:00:42] White must now prevent ...Bf3.} 26. Rc1 {[%emt 0:03:10] Hoping for a7. White is more active.} Rb8+ {[%emt 0:02:22]} 27. Ka1 {[%emt 0:00:04][%cal Oa6a7]} Bd5 {[%emt 0:01:01]} 28. a7 {[%emt 0:03:19] The board is on fire.} ({White should play} 28. Rc2 $16) 28... Rb4 $1 $11 {[%emt 0:01:22]} 29. Bg5 {[%emt 0:01:55] [#] Prevents Bf6.} Bd6 $1 $19 {Black is clearly better.} (29... Bxg5 30. Qxb4 Bxc1 31. Bb5 $16) 30. f4 {Wards off Be5. Threatens to win with Bh6.} Bc5 ({Wrong is} 30... Ra4 $2 31. Bh6 f6 32. Bxf8 Bxf4 33. Re1 (33. Ba3 Be5 $17) 33... Rxa2+ (33... Nxf8 $2 {loses.} 34. Qxf6 Bh6 35. Qe7 $18) (33... Be5 $2 34. Rxe5 fxe5 35. Ba3 $18) 34. Kb1 Rxa7 35. Bb4 $18) 31. Bf6 {Dodges Bd4} Ra4 {Weighted Error Value: White=0.38/Black=0.29 (precise) .  Loses game:     	White=1     	Black=1      Mistake:       	White=5     	Black=2      Inaccurate:     	White=2     	Black=1      OK:         	White=8     	Black=4      Best:        	White=1     	Black=8      Strong:       	White=2     	Black=2      Brilliant:      	White=1     	---} 1/2-1/2

[Event "Budapest Chess Festival 2024"]
[Site "Budapest"]
[Date "2024.05.27"]
[Round "5.10"]
[White "Prohaszka, Peter"]
[Black "Niedbala, Bartlomiej"]
[Result "1/2-1/2"]
[ECO "A06"]
[WhiteElo "2581"]
[BlackElo "2399"]
[Annotator "TA"]
[PlyCount "60"]
[EventDate "2024.05.20"]
[EventType "swiss"]
[EventCountry "HUN"]
[SourceTitle "playchess.com"]
[Source "ChessBase"]
[SourceQuality "1"]
[TimeControl "40/5400+30:1800+30"]

{[%evp 9,60,5,7,9,10,10,16,10,17,15,47,32,20,26,18,36,41,44,38,8,15,12,26,26,39,0,48,0,0,0,0,0,0,-22,0,0,12,0,0,0,0,0,0,0,16,5,4,8,5,0,0,0,0]} 1. Nf3 {[%emt 0:00:40]} d5 {[%emt 0:01:54]} 2. e3 {[%emt 0:00:06]} c5 {[%emt 0:00:46]} 3. b3 {[%emt 0:01:57]} a6 {[%emt 0:00:09]} 4. Bb2 {[%emt 0:04:04]} Nc6 {[%emt 0:00:45]} 5. d4 {[%emt 0:01:25]} Nf6 {[%emt 0:00:51]} 6. Be2 {[%emt 0:07:51]} cxd4 {[%emt 0:01:15]} 7. Nxd4 {[%emt 0:08:50]} e6 {[%emt 0:00:58][%cal Be7e6,Be6e5][%mdl 32]} (7... Nxd4 {looks sharper.} 8. Qxd4 Bf5 9. c4 dxc4 10. Qxc4 Rc8) 8. O-O {[%emt 0:01:46]} Bd6 {[%emt 0:00:42]} 9. c4 {[%emt 0:00:40]} e5 {[%emt 0:21:17]} 10. Nxc6 {[%emt 0:10:15]} bxc6 {[%emt 0:00:02]} 11. Nc3 {[%emt 0:02:42]} Be6 {[%emt 0:02:13]} 12. Na4 {[%emt 0:11:07]} O-O {[%emt 0:00:47]} 13. Rc1 {[%emt 0:00:35]} Qe7 {[%emt 0:07:54]} 14. Qc2 {[%emt 0:02:19]} Rfd8 {[%emt 0:09:12]} 15. Rfd1 {[%emt 0:00:22]} h6 {[%emt 0:00:44]} 16. h3 {[%emt 0:00:30]} Kh8 {[%emt 0:07:13]} 17. b4 {[%emt 0:16:17][%cal Oa4c5]} Nd7 {[%emt 0:13:20]} (17... Rdb8 $11 {deserves consideration.}) 18. cxd5 {[%emt 0:11:52]} (18. a3 $14) 18... cxd5 $11 {[%emt 0:00:07] The position is equal.} 19. Nc5 {[%emt 0:00:05]} Nxc5 {[%emt 0:14:42]} 20. bxc5 {[%emt 0:00:35]} Bc7 {[%emt 0:00:02]} 21. e4 {[%emt 0:00:13]} dxe4 {[%emt 0:02:17]} (21... Qg5 {is interesting.} 22. exd5 Bxd5 23. Bf1 e4) 22. Qxe4 {[%emt 0:01:12]} Bxa2 {[%emt 0:02:44]} 23. Rxd8+ {[%emt 0:07:34]} Rxd8 {[%emt 0:00:13]} 24. Bd3 {[%emt 0:01:17]} g6 {[%emt 0:00:14]} 25. Qe3 {[%emt 0:00:59]} Kg8 {[%emt 0:04:29]} 26. Bxa6 {[%emt 0:01:14]} h5 {[%emt 0:02:33]} 27. Be2 {[%emt 0:02:35]} Rb8 {[%emt 0:01:54]} 28. Bc3 {[%emt 0:01:46]} Qe6 {[%emt 0:01:55]} 29. Bf3 {[%emt 0:00:41]} Bd5 {[%emt 0:00:37]} 30. Ba1 {[%emt 0:00:44]} Rb3 {[%emt 0:00:52] Weighted Error Value: White=0.09 (flawless) /Black=0.08 (flawless) .  Mistake:       	White=1     	Black=1      Inaccurate:     	White=2     	Black=1      OK:         	White=6     	Black=9      Best:        	---       	Black=1} 1/2-1/2

[Event "Budapest Chess Festival 2024"]
[Site "Budapest"]
[Date "2024.05.27"]
[Round "5.11"]
[White "Mihok, Oliver"]
[Black "Nguyen, Piotr"]
[Result "1/2-1/2"]
[ECO "B52"]
[WhiteElo "2528"]
[BlackElo "2402"]
[Annotator "TA"]
[PlyCount "63"]
[EventDate "2024.05.20"]
[EventType "swiss"]
[EventCountry "HUN"]
[SourceTitle "playchess.com"]
[Source "ChessBase"]
[SourceQuality "1"]
[TimeControl "40/5400+30:1800+30"]

{[%evp 21,63,29,22,12,31,29,35,31,38,25,33,33,40,27,48,0,95,29,32,34,27,0,30,43,35,31,42,0,0,0,0,0,0,0,0,0,0,0,0,0,0,0,0,0]} 1. e4 {[%emt 0:00:34]} c5 {[%emt 0:01:13]} 2. Nf3 {[%emt 0:01:50]} d6 {[%emt 0:00:10]} 3. Bb5+ {[%emt 0:02:32]} Bd7 {[%emt 0:00:10]} 4. Bxd7+ {[%emt 0:00:29]} Qxd7 {[%emt 0:00:06]} 5. c4 {[%emt 0:00:32]} Nc6 {[%emt 0:00:56]} 6. Nc3 {[%emt 0:03:08]} Nf6 {[%emt 0:00:22]} 7. d4 {[%emt 0:00:57]} cxd4 {[%emt 0:00:05]} 8. Nxd4 {[%emt 0:00:03]} g6 {[%emt 0:00:11]} 9. f3 {[%emt 0:01:24]} Bg7 {[%emt 0:00:16]} 10. Be3 {[%emt 0:00:06]} O-O {[%emt 0:00:15]} 11. O-O {[%emt 0:00:28]} a6 {[%emt 0:02:33]} 12. Qd3 {[%emt 0:01:39]} Rab8 {[%emt 0:06:15]} 13. Nxc6 {[%emt 0:07:55]} bxc6 {[%emt 0:00:33]} 14. b3 {[%emt 0:00:29] White is slightly better.} Qc7 {[%emt 0:04:30]} 15. Rad1 {[%emt 0:07:40]} Nd7 {[%emt 0:00:30]} 16. f4 {[%emt 0:02:30]} Rbd8 {[%emt 0:05:26]} 17. Qc2 {[%emt 0:08:06]} f5 {[%emt 0:12:43]} 18. Ne2 {[%emt 0:03:50]} (18. exf5 $14 {is superior.} Qa5 19. Ne2 Qxf5 20. Qxf5 Rxf5 21. Bd4) 18... c5 {[%emt 0:22:54]} (18... e6 $1 $11 {keeps the balance.}) 19. Qd3 {[%emt 0:09:48]} (19. exf5 $16 gxf5 20. Qd3) 19... fxe4 $11 {[%emt 0:08:33]} 20. Qxe4 {[%emt 0:01:07][%cal Of4f5]} Nf6 {[%emt 0:01:09][%cal Bd7f6,Bf6g4,Bg4e5][%mdl 32]} 21. Qd3 {[%emt 0:08:35]} Qb7 {[%emt 0:08:10]} 22. f5 {[%emt 0:05:32]} gxf5 {[%emt 0:03:49]} 23. Rxf5 {[%emt 0:01:04]} Ng4 $1 {[%emt 0:04:56] [#] aiming for ...Rxf5.} 24. Bg5 {[%emt 0:08:16]} (24. Rg5 $5 Nxe3 25. Qxe3 $18) 24... Ne5 {[%emt 0:01:06] The position is equal.} 25. Qc2 {[%emt 0:02:23]} Rxf5 {[%emt 0:02:38]} 26. Qxf5 {[%emt 0:00:05]} Rf8 {[%emt 0:00:28]} 27. Qe6+ {[%emt 0:02:47]} Rf7 {[%emt 0:00:06]} 28. Ng3 {[%emt 0:06:18] Wards off Qe4. And now Re1 would win.} Qd7 {[%emt 0:04:04]} 29. Qd5 {[%emt 0:02:59]} Qc6 {[%emt 0:00:53]} 30. Qe6 {[%emt 0:01:35][%cal Od1e1] [#] Black must now prevent Re1!} Qd7 {[%emt 0:00:22]} 31. Qd5 {[%emt 0:00:33]} Qc6 {[%emt 0:01:01]} 32. Qe6 {[%emt 0:00:49] Weighted Error Value: White=0.11 (very precise) /Black=0.09 (flawless) .  Mistake:       	White=2     	Black=1      Inaccurate:     	White=2     	Black=1      OK:         	White=8     	Black=10     Best:        	---       	Black=3      Strong:       	---       	Black=1} 1/2-1/2